[Event "***Titled Tuesday 3|2 Blitz"]
[Site "Chess.com"]
[Date "2017.02.07"]
[Round "6"]
[White "AndrewDGreen"]
[Black "Dale"]
[Result "1-0"]
[WhiteElo "2157"]
[BlackElo "1984"]
[TimeControl "180+2"]
[EndTime "14:26:52 PST"]
[Termination "AndrewDGreen won by checkmate"]

1. d4 {[%clk 0:03:02]} 1... Nf6 {[%clk 0:03:00.5]} 2. Nf3 {[%clk 0:03:02.2]}
2... e6 {[%clk 0:03:01.5]} 3. Bf4 {[%clk 0:03:02.8]} 3... d5 {[%clk 0:03:01.7]}
4. e3 {[%clk 0:03:03.5]} 4... Be7 {[%clk 0:03:01.7]} 5. Ne5 {[%clk 0:03:04.1]}
5... O-O {[%clk 0:03:01.8]} 6. Bd3 {[%clk 0:03:04.8]} 6... Nc6 {[%clk
0:03:01.3]} 7. c3 {[%clk 0:02:54.1]} 7... Nd7 {[%clk 0:02:52.3]} 8. Nxc6 {[%clk
0:01:52.3]} 8... bxc6 {[%clk 0:02:52.6]} 9. Nd2 {[%clk 0:01:49.5]} 9... c5
{[%clk 0:02:44.3]} 10. Qf3 {[%clk 0:01:44]} 10... Rb8 {[%clk 0:02:36.7]} 11. Rb1
{[%clk 0:01:38.5]} 11... cxd4 {[%clk 0:02:31.5]} 12. exd4 {[%clk 0:01:40.4]}
12... f6 {[%clk 0:02:14]} 13. O-O {[%clk 0:01:27.8]} 13... e5 {[%clk 0:02:05.5]}
14. Qxd5+ {[%clk 0:01:25.3]} 14... Kh8 {[%clk 0:02:04.8]} 15. dxe5 {[%clk
0:01:23.1]} 15... Bb7 {[%clk 0:02:03.4]} 16. Qa5 {[%clk 0:01:15.3]} 16... fxe5
{[%clk 0:01:54.9]} 17. Bg3 {[%clk 0:01:11.5]} 17... Nc5 {[%clk 0:01:52.5]} 18.
Bc4 {[%clk 0:00:44.2]} 18... Qxd2 {[%clk 0:01:51]} 19. Bxe5 {[%clk 0:00:38.1]}
19... Qg5 {[%clk 0:01:43.4]} 20. Bg3 {[%clk 0:00:35.6]} 20... Bd6 {[%clk
0:01:28.8]} 21. b4 {[%clk 0:00:33.4]} 21... Bxg3 {[%clk 0:01:18.6]} 22. hxg3
{[%clk 0:00:35.3]} 22... Ne4 {[%clk 0:01:12.8]} 23. Qxg5 {[%clk 0:00:19.3]}
23... Nxg5 {[%clk 0:01:13.6]} 24. Rbd1 {[%clk 0:00:19.1]} 24... a5 {[%clk
0:01:13.2]} 25. a3 {[%clk 0:00:18]} 25... axb4 {[%clk 0:01:12.7]} 26. axb4
{[%clk 0:00:19.9]} 26... Ne4 {[%clk 0:01:11.5]} 27. Rd7 {[%clk 0:00:16.1]} 27...
Rbc8 {[%clk 0:01:06.2]} 28. Rd3 {[%clk 0:00:12.7]} 28... Nd6 {[%clk 0:01:05.5]}
29. Be6 {[%clk 0:00:11.4]} 29... Rce8 {[%clk 0:01:04.9]} 30. Bg4 {[%clk
0:00:10.9]} 30... Ba6 {[%clk 0:01:05.6]} 31. Rfd1 {[%clk 0:00:06.3]} 31... Bxd3
{[%clk 0:01:05.7]} 32. Rxd3 {[%clk 0:00:08.2]} 32... Re4 {[%clk 0:01:03.3]} 33.
Bf3 {[%clk 0:00:09]} 33... Rc4 {[%clk 0:01:04.1]} 34. Bd5 {[%clk 0:00:09.8]}
34... Rg4 {[%clk 0:01:04.2]} 35. Kh2 {[%clk 0:00:10.2]} 35... g6 {[%clk
0:01:05.3]} 36. f3 {[%clk 0:00:11.1]} 36... Rg5 {[%clk 0:01:05.2]} 37. c4 {[%clk
0:00:11.2]} 37... Kg7 {[%clk 0:01:04.8]} 38. g4 {[%clk 0:00:11.9]} 38... Re5
{[%clk 0:01:05]} 39. Kg3 {[%clk 0:00:12.3]} 39... Re2 {[%clk 0:01:05.4]} 40. c5
{[%clk 0:00:12.1]} 40... Nb5 {[%clk 0:00:58]} 41. Bc4 {[%clk 0:00:13.4]} 41...
c6 {[%clk 0:00:57.5]} 42. Rd7+ {[%clk 0:00:14.2]} 42... Kf6 {[%clk 0:00:55.7]}
43. Bxe2 {[%clk 0:00:14.7]} 43... Nc3 {[%clk 0:00:54.9]} 44. Bc4 {[%clk
0:00:12.7]} 44... h5 {[%clk 0:00:54.1]} 45. Rd6+ {[%clk 0:00:13.2]} 45... Kg5
{[%clk 0:00:47.5]} 46. gxh5 {[%clk 0:00:14.5]} 46... gxh5 {[%clk 0:00:46.7]} 47.
Rxc6 {[%clk 0:00:15.3]} 47... h4+ {[%clk 0:00:47.5]} 48. Kf2 {[%clk 0:00:15.3]}
48... Ne4+ {[%clk 0:00:47.7]} 49. Ke3 {[%clk 0:00:13.8]} 49... Nc3 {[%clk
0:00:45]} 50. b5 {[%clk 0:00:12.7]} 50... h3 {[%clk 0:00:46.1]} 51. gxh3 {[%clk
0:00:12.5]} 51... Kf5 {[%clk 0:00:43]} 52. b6 {[%clk 0:00:11.8]} 52... Re8+
{[%clk 0:00:42.6]} 53. Kd4 {[%clk 0:00:09.6]} 53... Na4 {[%clk 0:00:40.7]} 54.
b7 {[%clk 0:00:08.1]} 54... Kf4 {[%clk 0:00:41.3]} 55. Rc8 {[%clk 0:00:05.5]}
55... Re6 {[%clk 0:00:34.5]} 56. Bxe6 {[%clk 0:00:04.6]} 56... Nxc5 {[%clk
0:00:35.2]} 57. Kxc5 {[%clk 0:00:05.2]} 57... Ke5 {[%clk 0:00:35.3]} 58. b8=Q+
{[%clk 0:00:06.1]} 58... Kf6 {[%clk 0:00:36.4]} 59. Qf4+ {[%clk 0:00:06.6]}
59... Kg7 {[%clk 0:00:37]} 60. Qg5+ {[%clk 0:00:07.8]} 60... Kh7 {[%clk
0:00:37]} 61. Bf5# {[%clk 0:00:09]} 1-0

[Event "***Titled Tuesday 3|2 Blitz"]
[Site "Chess.com"]
[Date "2017.02.07"]
[Round "6"]
[White "joppie2"]
[Black "DryCounty"]
[Result "1-0"]
[WhiteElo "2525"]
[BlackElo "2391"]
[TimeControl "180+2"]
[EndTime "14:27:00 PST"]
[Termination "joppie2 won by resignation"]

1. e4 {[%clk 0:03:02]} 1... c5 {[%clk 0:02:59.5]} 2. Nf3 {[%clk 0:02:57]} 2...
d6 {[%clk 0:03:00.2]} 3. d4 {[%clk 0:02:50.6]} 3... cxd4 {[%clk 0:03:00.6]} 4.
Nxd4 {[%clk 0:02:52.5]} 4... Nf6 {[%clk 0:03:01.7]} 5. Nc3 {[%clk 0:02:54.2]}
5... Nc6 {[%clk 0:03:03.2]} 6. Bg5 {[%clk 0:02:54.8]} 6... e6 {[%clk 0:03:03.6]}
7. Qd2 {[%clk 0:02:53.6]} 7... Be7 {[%clk 0:03:04.5]} 8. O-O-O {[%clk
0:02:53.9]} 8... O-O {[%clk 0:03:05.1]} 9. f3 {[%clk 0:02:54.5]} 9... Nxd4
{[%clk 0:03:05.1]} 10. Qxd4 {[%clk 0:02:54.5]} 10... a6 {[%clk 0:03:05.8]} 11.
h4 {[%clk 0:02:55.5]} 11... b5 {[%clk 0:03:04.1]} 12. g4 {[%clk 0:02:57.1]}
12... Qc7 {[%clk 0:03:03.6]} 13. Qd2 {[%clk 0:02:58.3]} 13... Bb7 {[%clk
0:02:57.1]} 14. Bd3 {[%clk 0:02:59.8]} 14... Rfd8 {[%clk 0:02:46]} 15. Kb1
{[%clk 0:02:55.6]} 15... Rac8 {[%clk 0:02:37.9]} 16. h5 {[%clk 0:02:50.3]} 16...
b4 {[%clk 0:01:51.1]} 17. Ne2 {[%clk 0:02:48.2]} 17... d5 {[%clk 0:01:49.5]} 18.
e5 {[%clk 0:02:49.5]} 18... Ne4 {[%clk 0:01:49.9]} 19. Bxe4 {[%clk 0:02:08.4]}
19... dxe4 {[%clk 0:01:45.4]} 20. Nd4 {[%clk 0:02:02.8]} 20... Rxd4 {[%clk
0:01:42]} 21. Qxd4 {[%clk 0:02:03.5]} 21... Bxg5 {[%clk 0:01:41.1]} 22. fxe4
{[%clk 0:01:58.2]} 22... Qxc2+ {[%clk 0:01:37.6]} 23. Ka1 {[%clk 0:01:59.7]}
23... Bxe4 {[%clk 0:01:25]} 24. Rhe1 {[%clk 0:01:59.3]} 24... Bd5 {[%clk
0:01:16.1]} 25. Qxb4 {[%clk 0:01:56.5]} 25... h6 {[%clk 0:01:14.5]} 26. Rf1
{[%clk 0:01:53]} 26... Rc4 {[%clk 0:01:04]} 27. Qb8+ {[%clk 0:01:47]} 27... Kh7
{[%clk 0:01:04.8]} 28. Qf8 {[%clk 0:01:14.5]} 28... Ra4 {[%clk 0:01:02.9]} 29.
Rxd5 {[%clk 0:01:14.5]} 29... exd5 {[%clk 0:00:59.6]} 30. Qxf7 {[%clk
0:01:15.7]} 30... Rb4 {[%clk 0:00:54.1]} 31. Rb1 {[%clk 0:01:16.1]} 31... Be3
{[%clk 0:00:47.1]} 32. a3 {[%clk 0:00:39]} 32... Rb8 {[%clk 0:00:46.1]} 33. Qxd5
{[%clk 0:00:36.4]} 33... Bc1 {[%clk 0:00:43.7]} 34. Qa2 {[%clk 0:00:34.2]} 34...
Bxb2+ {[%clk 0:00:40.3]} 35. Rxb2 {[%clk 0:00:31.3]} 35... Qc1+ {[%clk
0:00:40.9]} 36. Qb1+ {[%clk 0:00:32.4]} 36... Qxb1+ {[%clk 0:00:38.9]} 37. Kxb1
{[%clk 0:00:30.4]} 37... Re8 {[%clk 0:00:39.9]} 38. Re2 {[%clk 0:00:31.2]} 38...
Kg8 {[%clk 0:00:40.2]} 39. e6 {[%clk 0:00:27.2]} 39... Kf8 {[%clk 0:00:35.8]}
40. Kb2 {[%clk 0:00:27.2]} 40... Ke7 {[%clk 0:00:36.8]} 41. Kb3 {[%clk
0:00:28.5]} 41... Rf8 {[%clk 0:00:36.2]} 42. Re4 {[%clk 0:00:29.8]} 42... Rf3+
{[%clk 0:00:35.6]} 43. Kb4 {[%clk 0:00:29.6]} 43... Rg3 {[%clk 0:00:36.2]} 44.
a4 {[%clk 0:00:30.5]} 44... Rd3 {[%clk 0:00:34.6]} 45. Ka5 {[%clk 0:00:31.5]}
45... Rd6 {[%clk 0:00:35.5]} 46. Rb4 {[%clk 0:00:26.1]} 46... Rxe6 {[%clk
0:00:35]} 47. Rb6 {[%clk 0:00:26.3]} 47... Re4 {[%clk 0:00:35.5]} 48. Rxa6
{[%clk 0:00:17.4]} 48... Rxg4 {[%clk 0:00:36.3]} 49. Rb6 {[%clk 0:00:07]} 49...
Rg5+ {[%clk 0:00:37.3]} 50. Rb5 {[%clk 0:00:08.2]} 50... Kf6 {[%clk 0:00:33.8]}
51. Ka6 {[%clk 0:00:07.7]} 51... g6 {[%clk 0:00:31.6]} 52. hxg6 {[%clk
0:00:04.9]} 52... Kxg6 {[%clk 0:00:28]} 53. a5 {[%clk 0:00:06.4]} 53... Rg1
{[%clk 0:00:25.4]} 54. Kb7 {[%clk 0:00:06.8]} 54... h5 {[%clk 0:00:25.5]} 55. a6
{[%clk 0:00:08.2]} 55... h4 {[%clk 0:00:26.1]} 56. a7 {[%clk 0:00:09.7]} 56...
Ra1 {[%clk 0:00:22.9]} 57. a8=Q {[%clk 0:00:10.3]} 57... Rxa8 {[%clk 0:00:23.7]}
58. Kxa8 {[%clk 0:00:12.2]} 58... h3 {[%clk 0:00:25.2]} 59. Rb3 {[%clk
0:00:09.5]} 1-0

[Event "***Titled Tuesday 3|2 Blitz"]
[Site "Chess.com"]
[Date "2017.02.07"]
[Round "6"]
[White "VMikhalevski"]
[Black "sergiochess83"]
[Result "1-0"]
[WhiteElo "2526"]
[BlackElo "2694"]
[TimeControl "180+2"]
[EndTime "14:27:06 PST"]
[Termination "VMikhalevski won by resignation"]

1. Nf3 {[%clk 0:03:02]} 1... d5 {[%clk 0:02:38.7]} 2. g3 {[%clk 0:03:03]} 2...
Nf6 {[%clk 0:02:38.9]} 3. Bg2 {[%clk 0:03:04.3]} 3... c6 {[%clk 0:02:40.4]} 4.
O-O {[%clk 0:03:02.2]} 4... Bf5 {[%clk 0:02:40.2]} 5. d3 {[%clk 0:03:02.6]} 5...
e6 {[%clk 0:02:41.4]} 6. c4 {[%clk 0:03:01.7]} 6... Be7 {[%clk 0:02:41.2]} 7.
cxd5 {[%clk 0:03:02]} 7... exd5 {[%clk 0:02:41.4]} 8. Nc3 {[%clk 0:03:01.5]}
8... O-O {[%clk 0:02:41.7]} 9. Qb3 {[%clk 0:02:53.7]} 9... Qb6 {[%clk
0:01:53.9]} 10. Qc2 {[%clk 0:02:48.9]} 10... Nbd7 {[%clk 0:01:48]} 11. e4 {[%clk
0:02:46.3]} 11... dxe4 {[%clk 0:01:47.8]} 12. dxe4 {[%clk 0:02:46.9]} 12... Bg6
{[%clk 0:01:49.1]} 13. Nh4 {[%clk 0:02:43.5]} 13... Rad8 {[%clk 0:01:40.9]} 14.
Be3 {[%clk 0:02:37.9]} 14... Qa6 {[%clk 0:01:41.5]} 15. Nxg6 {[%clk 0:02:34.7]}
15... hxg6 {[%clk 0:01:41.8]} 16. Rad1 {[%clk 0:02:30.9]} 16... Ne5 {[%clk
0:01:40.2]} 17. b3 {[%clk 0:02:23.8]} 17... Bb4 {[%clk 0:01:32.6]} 18. h3 {[%clk
0:02:15.1]} 18... Rd3 {[%clk 0:01:08.6]} 19. Rxd3 {[%clk 0:01:48.1]} 19... Qxd3
{[%clk 0:01:09.5]} 20. Qxd3 {[%clk 0:01:48.7]} 20... Nxd3 {[%clk 0:01:11.4]} 21.
Na4 {[%clk 0:01:45.6]} 21... Ne1 {[%clk 0:00:41.7]} 22. Bh1 {[%clk 0:01:29.1]}
22... b5 {[%clk 0:00:31.5]} 23. Bc5 {[%clk 0:01:22.3]} 23... Bxc5 {[%clk
0:00:30.1]} 24. Nxc5 {[%clk 0:01:23.2]} 24... Nc2 {[%clk 0:00:30.7]} 25. Rd1
{[%clk 0:01:21.7]} 25... Re8 {[%clk 0:00:28.2]} 26. Rd2 {[%clk 0:01:10.7]} 26...
Na3 {[%clk 0:00:15]} 27. f4 {[%clk 0:01:09.9]} 27... Nb1 {[%clk 0:00:13.9]} 28.
Rd3 {[%clk 0:01:09]} 28... b4 {[%clk 0:00:14.6]} 29. e5 {[%clk 0:01:03.7]} 29...
Nd5 {[%clk 0:00:15.2]} 30. Bxd5 {[%clk 0:01:03.5]} 30... cxd5 {[%clk 0:00:17.1]}
31. Rxd5 {[%clk 0:01:04.7]} 31... Rc8 {[%clk 0:00:18.2]} 32. Ne4 {[%clk
0:01:02]} 32... Nc3 {[%clk 0:00:18.6]} 33. Nd6 {[%clk 0:00:46.9]} 33... Nxd5
{[%clk 0:00:10.5]} 34. Nxc8 {[%clk 0:00:47.7]} 34... a6 {[%clk 0:00:12.4]} 35.
Kf2 {[%clk 0:00:43.3]} 35... Nc3 {[%clk 0:00:13.3]} 36. Ke3 {[%clk 0:00:43.5]}
36... Nxa2 {[%clk 0:00:14.5]} 37. Kd4 {[%clk 0:00:44.7]} 37... Nc1 {[%clk
0:00:12.6]} 38. Kc4 {[%clk 0:00:45.1]} 38... Ne2 {[%clk 0:00:13.7]} 39. Kxb4
{[%clk 0:00:43.9]} 39... Nxg3 {[%clk 0:00:14.9]} 40. Ka5 {[%clk 0:00:44.8]}
40... Ne2 {[%clk 0:00:16.1]} 41. Ne7+ {[%clk 0:00:45.7]} 41... Kf8 {[%clk
0:00:16.6]} 42. Nd5 {[%clk 0:00:46.9]} 42... Ke8 {[%clk 0:00:12.2]} 43. Kxa6
{[%clk 0:00:46.8]} 43... Kd7 {[%clk 0:00:13.5]} 44. b4 {[%clk 0:00:46.3]} 44...
Kc6 {[%clk 0:00:11.6]} 45. Ne7+ {[%clk 0:00:45.2]} 45... Kd7 {[%clk 0:00:11.5]}
46. Nd5 {[%clk 0:00:45.2]} 46... Kc6 {[%clk 0:00:12.9]} 47. Ne3 {[%clk
0:00:44.7]} 47... Nxf4 {[%clk 0:00:13.3]} 48. b5+ {[%clk 0:00:45.3]} 48... Kc5
{[%clk 0:00:10.7]} 49. b6 {[%clk 0:00:45.3]} 49... Nd3 {[%clk 0:00:07.2]} 50. b7
{[%clk 0:00:40.6]} 50... Nb4+ {[%clk 0:00:08.1]} 51. Ka7 {[%clk 0:00:41.7]}
51... Nc6+ {[%clk 0:00:10]} 52. Ka8 {[%clk 0:00:42.8]} 52... Kd4 {[%clk
0:00:07.9]} 53. Nc2+ {[%clk 0:00:42.7]} 53... Kc5 {[%clk 0:00:08.1]} 54. Ne1
{[%clk 0:00:42.3]} 54... Kd4 {[%clk 0:00:08.5]} 55. Nf3+ {[%clk 0:00:43]} 55...
Kd5 {[%clk 0:00:04.6]} 56. Ng5 {[%clk 0:00:37.8]} 56... f5 {[%clk 0:00:05.6]}
57. e6 {[%clk 0:00:36.9]} 57... Kd6 {[%clk 0:00:05.7]} 58. Nf3 {[%clk
0:00:37.1]} 58... f4 {[%clk 0:00:03.3]} 59. Nd4 {[%clk 0:00:37.4]} 1-0

[Event "***Titled Tuesday 3|2 Blitz"]
[Site "Chess.com"]
[Date "2017.02.07"]
[Round "6"]
[White "Tesla37"]
[Black "SavelijTartakover"]
[Result "0-1"]
[WhiteElo "2583"]
[BlackElo "2547"]
[TimeControl "180+2"]
[EndTime "14:27:12 PST"]
[Termination "SavelijTartakover won by resignation"]

1. Nf3 {[%clk 0:03:02]} 1... Nf6 {[%clk 0:03:00.4]} 2. g3 {[%clk 0:03:02.7]}
2... c5 {[%clk 0:02:58.8]} 3. Bg2 {[%clk 0:03:04]} 3... Nc6 {[%clk 0:02:59]} 4.
O-O {[%clk 0:03:05.5]} 4... g6 {[%clk 0:02:59.2]} 5. c4 {[%clk 0:03:04.3]} 5...
Bg7 {[%clk 0:02:59.8]} 6. Nc3 {[%clk 0:03:05.7]} 6... O-O {[%clk 0:03:00.3]} 7.
d4 {[%clk 0:03:06.5]} 7... cxd4 {[%clk 0:03:01]} 8. Nxd4 {[%clk 0:03:08.1]} 8...
Qa5 {[%clk 0:03:02.5]} 9. Nc2 {[%clk 0:03:08.3]} 9... d6 {[%clk 0:02:55]} 10. e4
{[%clk 0:03:05.8]} 10... Qh5 {[%clk 0:02:54.9]} 11. Qxh5 {[%clk 0:03:05.5]}
11... Nxh5 {[%clk 0:02:54.4]} 12. Bd2 {[%clk 0:03:02.1]} 12... Be6 {[%clk
0:02:51.5]} 13. b3 {[%clk 0:03:02.2]} 13... Rfc8 {[%clk 0:02:48.8]} 14. Rac1
{[%clk 0:03:02.8]} 14... Nf6 {[%clk 0:02:47.4]} 15. h3 {[%clk 0:03:00.5]} 15...
a6 {[%clk 0:02:47.8]} 16. f4 {[%clk 0:02:50.4]} 16... b5 {[%clk 0:02:09.1]} 17.
Nd5 {[%clk 0:02:46.1]} 17... Nd7 {[%clk 0:01:43.7]} 18. cxb5 {[%clk 0:02:43.9]}
18... axb5 {[%clk 0:01:42.7]} 19. Ncb4 {[%clk 0:02:43.2]} 19... Bxd5 {[%clk
0:01:41.1]} 20. Nxd5 {[%clk 0:02:39.5]} 20... Kf8 {[%clk 0:01:35.1]} 21. e5
{[%clk 0:02:37.3]} 21... Rxa2 {[%clk 0:01:22.6]} 22. Be3 {[%clk 0:02:25.4]}
22... Nc5 {[%clk 0:00:20]} 23. Nxe7 {[%clk 0:02:17.3]} 23... Kxe7 {[%clk
0:00:14.5]} 24. exd6+ {[%clk 0:02:17.6]} 24... Kd7 {[%clk 0:00:13.2]} 25. Rxc5
{[%clk 0:02:12.8]} 25... Nd4 {[%clk 0:00:11.7]} 26. Rxc8 {[%clk 0:02:07.4]}
26... Kxc8 {[%clk 0:00:13.6]} 27. Rd1 {[%clk 0:02:02.7]} 27... Ne2+ {[%clk
0:00:10.7]} 28. Kh2 {[%clk 0:02:02]} 28... Kd7 {[%clk 0:00:11.7]} 29. h4 {[%clk
0:01:45.1]} 29... f5 {[%clk 0:00:11.2]} 30. Kh3 {[%clk 0:01:43.6]} 30... Rb2
{[%clk 0:00:09]} 31. Rd3 {[%clk 0:01:40.2]} 31... b4 {[%clk 0:00:05.4]} 32. h5
{[%clk 0:01:29.6]} 32... Nc3 {[%clk 0:00:04.2]} 33. h6 {[%clk 0:01:27]} 33...
Bf6 {[%clk 0:00:04.7]} 34. Bf3 {[%clk 0:01:24]} 34... Rxb3 {[%clk 0:00:04.2]}
35. g4 {[%clk 0:01:25.3]} 35... Rb1 {[%clk 0:00:03.3]} 36. gxf5 {[%clk
0:01:25.3]} 36... gxf5 {[%clk 0:00:04]} 37. Bd2 {[%clk 0:01:24.1]} 37... Ne4
{[%clk 0:00:04.4]} 38. Be3 {[%clk 0:00:57]} 38... b3 {[%clk 0:00:04.8]} 39. Rd1
{[%clk 0:00:57]} 39... Rxd1 {[%clk 0:00:05.1]} 40. Bxd1 {[%clk 0:00:57.8]} 40...
b2 {[%clk 0:00:06.3]} 41. Bc2 {[%clk 0:00:59.3]} 41... Kxd6 {[%clk 0:00:06.8]}
42. Kg2 {[%clk 0:00:58.6]} 42... Bc3 {[%clk 0:00:06.1]} 43. Kf3 {[%clk
0:00:57.3]} 43... Ke7 {[%clk 0:00:06]} 44. Ke2 {[%clk 0:00:50.1]} 44... Kf6
{[%clk 0:00:07]} 45. Kd3 {[%clk 0:00:50.9]} 45... Kg6 {[%clk 0:00:07.2]} 46. Bb1
{[%clk 0:00:47.7]} 46... Kxh6 {[%clk 0:00:07.1]} 47. Kc4 {[%clk 0:00:46.1]}
47... Bf6 {[%clk 0:00:06.5]} 48. Kb3 {[%clk 0:00:44.3]} 48... Kg6 {[%clk
0:00:07.1]} 49. Bd3 {[%clk 0:00:42.1]} 49... h5 {[%clk 0:00:07.4]} 50. Kc2
{[%clk 0:00:43.3]} 50... h4 {[%clk 0:00:07.7]} 51. Bg1 {[%clk 0:00:44.1]} 51...
Ng3 {[%clk 0:00:05.8]} 52. Bf2 {[%clk 0:00:42.2]} 52... Kh5 {[%clk 0:00:05.8]}
53. Kd1 {[%clk 0:00:28.5]} 53... Kg4 {[%clk 0:00:06.7]} 54. Ke1 {[%clk
0:00:29.6]} 54... h3 {[%clk 0:00:06.2]} 55. Bg1 {[%clk 0:00:27.7]} 55... Kxf4
{[%clk 0:00:05.8]} 56. Bh2 {[%clk 0:00:29]} 56... Kg4 {[%clk 0:00:06.3]} 57. Kf2
{[%clk 0:00:27.6]} 57... Bd4+ {[%clk 0:00:07]} 58. Ke1 {[%clk 0:00:27.9]} 58...
f4 {[%clk 0:00:08.2]} 59. Bb1 {[%clk 0:00:26]} 59... f3 {[%clk 0:00:08.9]} 0-1

[Event "***Titled Tuesday 3|2 Blitz"]
[Site "Chess.com"]
[Date "2017.02.07"]
[Round "6"]
[White "JeremDev"]
[Black "popov_m"]
[Result "1-0"]
[WhiteElo "2152"]
[BlackElo "2323"]
[TimeControl "180+2"]
[EndTime "14:27:33 PST"]
[Termination "JeremDev won by resignation"]

1. e4 {[%clk 0:03:01.9]} 1... e6 {[%clk 0:03:01]} 2. Nf3 {[%clk 0:03:02.4]} 2...
d5 {[%clk 0:03:01.8]} 3. e5 {[%clk 0:03:02.8]} 3... Bd7 {[%clk 0:03:00.8]} 4. d4
{[%clk 0:03:03]} 4... c5 {[%clk 0:03:00.2]} 5. c3 {[%clk 0:03:02.7]} 5... Nc6
{[%clk 0:03:00.6]} 6. a3 {[%clk 0:02:55.7]} 6... f6 {[%clk 0:03:01.6]} 7. b4
{[%clk 0:02:56.4]} 7... fxe5 {[%clk 0:03:01.4]} 8. dxe5 {[%clk 0:02:54.5]} 8...
Qb6 {[%clk 0:02:55.1]} 9. Bd3 {[%clk 0:02:48.8]} 9... g6 {[%clk 0:02:47.5]} 10.
h4 {[%clk 0:02:43.3]} 10... Bg7 {[%clk 0:02:43.7]} 11. Qe2 {[%clk 0:02:39.6]}
11... c4 {[%clk 0:02:37.3]} 12. Bc2 {[%clk 0:02:38.4]} 12... O-O-O {[%clk
0:02:30.8]} 13. a4 {[%clk 0:02:34]} 13... d4 {[%clk 0:02:20.8]} 14. a5 {[%clk
0:02:25.6]} 14... Qc7 {[%clk 0:02:17.5]} 15. cxd4 {[%clk 0:02:22.3]} 15... Nxb4
{[%clk 0:02:15.6]} 16. Be4 {[%clk 0:02:19.5]} 16... Ne7 {[%clk 0:02:04.9]} 17.
O-O {[%clk 0:02:15.3]} 17... Ned5 {[%clk 0:02:04.6]} 18. Bd2 {[%clk 0:02:12.4]}
18... Bb5 {[%clk 0:01:49.7]} 19. Nc3 {[%clk 0:02:13.1]} 19... Ba6 {[%clk
0:01:46.1]} 20. Rfb1 {[%clk 0:02:13.1]} 20... Rhf8 {[%clk 0:01:28.1]} 21. Ng5
{[%clk 0:02:14]} 21... Qe7 {[%clk 0:01:12.5]} 22. Qg4 {[%clk 0:02:04.5]} 22...
Rf5 {[%clk 0:01:11.5]} 23. Nf3 {[%clk 0:01:40.4]} 23... Rdf8 {[%clk 0:00:56]}
24. Nxd5 {[%clk 0:01:15.9]} 24... Nxd5 {[%clk 0:00:54.5]} 25. Bxd5 {[%clk
0:01:17.1]} 25... exd5 {[%clk 0:00:54.5]} 26. Bb4 {[%clk 0:01:18.7]} 26... Qd7
{[%clk 0:00:40.4]} 27. Bxf8 {[%clk 0:01:19.1]} 27... Bxf8 {[%clk 0:00:42.3]} 28.
Ng5 {[%clk 0:01:01.1]} 28... Kc7 {[%clk 0:00:11.2]} 29. Re1 {[%clk 0:01:01.3]}
29... Bb4 {[%clk 0:00:11.5]} 30. Re3 {[%clk 0:00:58]} 30... Qe7 {[%clk
0:00:09.3]} 31. e6 {[%clk 0:00:55.7]} 31... Bd6 {[%clk 0:00:09]} 32. Nf7 {[%clk
0:00:54.1]} 32... Rf4 {[%clk 0:00:09.8]} 33. Qg5 {[%clk 0:00:49.5]} 33... Rxh4
{[%clk 0:00:11.1]} 34. Qxd5 {[%clk 0:00:39.4]} 34... Bh2+ {[%clk 0:00:10.1]} 35.
Kf1 {[%clk 0:00:40.4]} 35... c3+ {[%clk 0:00:11.4]} 36. Ke1 {[%clk 0:00:41.6]}
36... Bd6 {[%clk 0:00:11.4]} 37. Rxc3+ {[%clk 0:00:42.5]} 37... Kb8 {[%clk
0:00:10.7]} 38. Qxd6+ {[%clk 0:00:39.2]} 38... Qxd6 {[%clk 0:00:11.5]} 39. Nxd6
{[%clk 0:00:41.1]} 39... b6 {[%clk 0:00:12.3]} 40. Kd2 {[%clk 0:00:36.8]} 40...
Rxd4+ {[%clk 0:00:13.4]} 41. Kc2 {[%clk 0:00:36.7]} 41... Rxd6 {[%clk
0:00:15.3]} 42. Re1 {[%clk 0:00:35.7]} 42... Bb5 {[%clk 0:00:13.6]} 43. axb6
{[%clk 0:00:35.5]} 43... axb6 {[%clk 0:00:15]} 44. e7 {[%clk 0:00:36.5]} 44...
Be8 {[%clk 0:00:15.2]} 45. Rf3 {[%clk 0:00:37.5]} 45... Kc7 {[%clk 0:00:12.9]}
46. Rf8 {[%clk 0:00:36.4]} 46... Rc6+ {[%clk 0:00:13.9]} 47. Kb2 {[%clk
0:00:33.7]} 47... Kd7 {[%clk 0:00:15.8]} 48. Rh8 {[%clk 0:00:34.5]} 48... Rd6
{[%clk 0:00:15.7]} 49. Re2 {[%clk 0:00:31]} 49... h5 {[%clk 0:00:16.2]} 50. f4
{[%clk 0:00:30.7]} 50... b5 {[%clk 0:00:16.6]} 51. Kc1 {[%clk 0:00:27.3]} 51...
Rc6+ {[%clk 0:00:07.8]} 52. Kd1 {[%clk 0:00:27.9]} 52... Rd6+ {[%clk 0:00:09]}
53. Ke1 {[%clk 0:00:25]} 53... Rd4 {[%clk 0:00:08.1]} 54. g3 {[%clk 0:00:23]}
54... Rd3 {[%clk 0:00:09.6]} 55. Kf2 {[%clk 0:00:23.6]} 55... b4 {[%clk
0:00:09.8]} 56. Rf8 {[%clk 0:00:18.2]} 56... Rd6 {[%clk 0:00:07.5]} 57. f5
{[%clk 0:00:18.3]} 57... gxf5 {[%clk 0:00:06.5]} 58. Rxf5 {[%clk 0:00:19]} 58...
b3 {[%clk 0:00:07.5]} 59. Rb5 {[%clk 0:00:19.4]} 59... Rd3 {[%clk 0:00:07.4]}
60. Rb8 {[%clk 0:00:18.3]} 60... Rc3 {[%clk 0:00:05.9]} 61. Rd8+ {[%clk
0:00:19.1]} 61... Kc7 {[%clk 0:00:07.2]} 1-0